{"text_format":"1","workbook":"xlsx","n_sheets":3,"sheets":["一覧","通知書 ","リスト"],"not_rendered":{"charts":0,"images":0,"macros":1,"external_links":0,"defined_names":1,"comments":0,"pivot_tables":0},"unopened":[],"bounds":{"document_bytes":16777216,"sheet_cells":100000,"rows_first":2000,"rows_last":500,"rows_between":2000,"halvings":0,"cell_chars":16384,"cell_head_chars":4096},"cells_cut":0,"cells_raw":0,"read":"whole","date_system":"1900"}

{"sheet":"一覧","index":0,"n_rows":36,"n_cols":37,"rows_kept":36,"cut":false,"hidden":false,"merged":[[5,10,5,11],[6,17,6,18],[10,17,10,18]]}
[null,"＜アルバイト使用申請シート＞"]
[null,"ひとりのアルバイト従事者につき1行を使用してください。複数の従事者がいる場合や複数の研究費で使用する場合には、行を分けて入力してください。"]
[null,"アルバイトを使用する研究者が一覧を記入し、事前にメールで事務室担当に提出してください。【駿河台キャンパス：suruga_arbeit@meiji.ac.jp】、【和泉キャンパス：izrpo@mics.meiji.ac.jp】",null,null,null,null,null,null,null,null,null,null,null,null,null,null,null,"2025-03-31"]
[null,"※ 本学の専任教職員（助教・助手含む）及び法人ＰＤは、アルバイトをすることができません。"]
[null,"№",1,2,3,4,5,6,7,8,9,10,11,12,13,14,15,16,null,17,18,19,20,21,22,23,24,25,26,27,28,29,30,31,32,33,34]
[null,"備考",null,"取得者のみチェック","取得者のみ記入","提出者のみ記入",null,null,"該当者のみ記入","該当者のみ記入","該当者のみ記入",null,"該当者のみ記入",null,null,null,null,null,null,null,null,null,null,null,null,"最長は当年度終了まで","定期・不定期に\n関わらず併せて要入力\n№26　勤務時間/日\n№27　勤務時間/週","定期勤務に該当する方のみ記入","8時間以内","①40時間以内\n②ただし、20時間を超える勤務時間数を設定した場合は、アルバイト賃金に加えて、各種保険料（社会保険料や雇用保険料）を別途研究費にて負担する",null,"いずれかを選択",null,"専門知識を要する業務：1,700円/一般的補助業務：1,300円が上限額","有り/無しのいずれかを選択\n\n≪支給対象外となる方≫\n①作業期間中に定期券代の支給のある方\n②本学の学生・大学院生で通学キャンパスと勤務地が同一の方",null,"該当者のみチェック"]
[null,"項目","アルバイト従事者の昨年度における本学での職務実績の有無","既にチェックIDを取得","チェックID","配布元事務室","アルバイト従事者氏名","アルバイト従事者氏名（カナ）","所属（学生）","所属（学生以外）","本アルバイト以外で従事している職務(TA等)（予定含む）","本アルバイト以外で従事している\n職務の勤務曜日・時間（予定含む）","資格外活動許可(留学生)\n有無","電話番号","e-mail","郵便番号","住所","生年月日",null,"研究者氏名","研究者 e-mail","研究者所属","支出研究費名称","直接経費/研究支援経費","作業期間（開始）","作業期間（終了）","定期勤務/不定期勤務","定期勤務（曜日・時間）","勤務時間/日","勤務時間/週","従事場所","専門知識を要する業務/一般的補助業務","作業内容","時給額/円","通勤交通費の支給有り/無し","定期区間","（従事者が非居住者の場合）\n安全保障輸出管理にかかるチェック"]
[null,"入力例","有","☑",341012345,"研究知財事務室","明治　太郎","メイジ　タロウ","明治大学　商学部　3年","○○市博物館　嘱託職員／無職","TA","TA/金曜日・4時間","有","090-XXXX-XXXX","abcd@meiji.ac.jp",1234567,"東京都千代田区神田駿河台1-1-○○","1955-05-05","〈入力しないでください〉","矢代　操","abcd@meiji.ac.jp","文学部","基盤研究（C）","研究支援経費","2025-04-01","2026-03-31","定期勤務","月曜日・6時間、水曜日・7時間",8,20,"研究室、図書館、その他研究者の指定する場所","専門知識を要する業務","研究テーマ○○についてのデータ収集及び整理",1700,"有り","明大前～神保町","☑"]
[]
[null,"№",1,2,3,4,5,6,7,8,9,10,11,12,13,14,15,16,null,17,18,19,20,21,22,23,24,25,26,27,28,29,30,31,32,33,34]
[null,"項目","アルバイト従事者の昨年度における本学での職務実績の有無","既にチェックIDを取得","チェックID","配布元事務室","アルバイト従事者氏名","アルバイト従事者氏名（カナ）","所属（学生）","所属（学生以外）","本アルバイト以外で従事している職務(TA等)（予定含む）","本アルバイト以外で従事している\n職務の勤務曜日・時間（予定含む）","資格外活動許可(留学生)\n有無","電話番号","e-mail","郵便番号","住所","生年月日",null,"研究者氏名","研究者 e-mail","研究者所属","支出研究費名称","直接経費/研究支援経費","作業期間（開始）","作業期間（終了）","定期勤務/不定期勤務","定期勤務（曜日・時間）","勤務時間/日","勤務時間/週","従事場所","専門知識を要する業務/一般的補助業務","作業内容","時給額/円","通勤交通費の支給有り/無し","定期区間","（従事者が非居住者の場合）\n安全保障輸出管理にかかるチェック"]
[null,1,null,null,null,null,null,null,null,null,null,null,null,null,null,null,null,null,{"$f":"IF(R12>0,IF(DATEDIF(R12,$R$3,\"Y\")>65,\"担当事務室にご連絡ください\",\"\"),\"\")","v":""},null,null,null,null,null,null,null,null,{"$f":"IF($AA12=\"不定期勤務\",\"教員の指示による\",\"\")","v":""}]
[null,2,null,null,null,null,null,null,null,null,null,null,null,null,null,null,null,null,"",null,null,null,null,null,null,null,null,{"$f":"IF($AA13=\"不定期勤務\",\"教員の指示による\",\"\")","v":""}]
[null,3,null,null,null,null,null,null,null,null,null,null,null,null,null,null,null,null,{"$f":"IF(R14>0,IF(DATEDIF(R14,$R$3,\"Y\")>65,\"担当事務室にご連絡ください\",\"\"),\"\")","v":""},null,null,null,null,null,null,null,null,""]
[null,4,null,null,null,null,null,null,null,null,null,null,null,null,null,null,null,null,{"$f":"IF(R15>0,IF(DATEDIF(R15,$R$3,\"Y\")>65,\"担当事務室にご連絡ください\",\"\"),\"\")","v":""},null,null,null,null,null,null,null,null,""]
[null,5,null,null,null,null,null,null,null,null,null,null,null,null,null,null,null,null,"",null,null,null,null,null,null,null,null,""]
[null,6,null,null,null,null,null,null,null,null,null,null,null,null,null,null,null,null,"",null,null,null,null,null,null,null,null,""]
[null,7,null,null,null,null,null,null,null,null,null,null,null,null,null,null,null,null,"",null,null,null,null,null,null,null,null,""]
[null,8,null,null,null,null,null,null,null,null,null,null,null,null,null,null,null,null,"",null,null,null,null,null,null,null,null,""]
[null,9,null,null,null,null,null,null,null,null,null,null,null,null,null,null,null,null,"",null,null,null,null,null,null,null,null,""]
[null,10,null,null,null,null,null,null,null,null,null,null,null,null,null,null,null,null,"",null,null,null,null,null,null,null,null,""]
[null,11,null,null,null,null,null,null,null,null,null,null,null,null,null,null,null,null,"",null,null,null,null,null,null,null,null,""]
[null,12,null,null,null,null,null,null,null,null,null,null,null,null,null,null,null,null,"",null,null,null,null,null,null,null,null,""]
[null,13,null,null,null,null,null,null,null,null,null,null,null,null,null,null,null,null,"",null,null,null,null,null,null,null,null,""]
[null,14,null,null,null,null,null,null,null,null,null,null,null,null,null,null,null,null,"",null,null,null,null,null,null,null,null,""]
[null,15,null,null,null,null,null,null,null,null,null,null,null,null,null,null,null,null,"",null,null,null,null,null,null,null,null,""]
[null,16,null,null,null,null,null,null,null,null,null,null,null,null,null,null,null,null,"",null,null,null,null,null,null,null,null,""]
[null,17,null,null,null,null,null,null,null,null,null,null,null,null,null,null,null,null,"",null,null,null,null,null,null,null,null,""]
[null,18,null,null,null,null,null,null,null,null,null,null,null,null,null,null,null,null,"",null,null,null,null,null,null,null,null,""]
[null,19,null,null,null,null,null,null,null,null,null,null,null,null,null,null,null,null,"",null,null,null,null,null,null,null,null,""]
[null,20,null,null,null,null,null,null,null,null,null,null,null,null,null,null,null,null,"",null,null,null,null,null,null,null,null,""]
[null,21,null,null,null,null,null,null,null,null,null,null,null,null,null,null,null,null,"",null,null,null,null,null,null,null,null,""]
[null,22,null,null,null,null,null,null,null,null,null,null,null,null,null,null,null,null,"",null,null,null,null,null,null,null,null,""]
[null,23,null,null,null,null,null,null,null,null,null,null,null,null,null,null,null,null,"",null,null,null,null,null,null,null,null,""]
[null,24,null,null,null,null,null,null,null,null,null,null,null,null,null,null,null,null,"",null,null,null,null,null,null,null,null,""]
[null,25,null,null,null,null,null,null,null,null,null,null,null,null,null,null,null,null,"",null,null,null,null,null,null,null,null,""]

{"sheet":"通知書 ","index":1,"n_rows":58,"n_cols":14,"rows_kept":58,"cut":false,"hidden":false,"merged":[[56,5,56,6],[56,7,56,10],[57,5,57,6],[57,7,57,10],[49,1,49,10],[50,1,50,2],[50,3,50,6],[50,7,50,10],[55,5,55,6],[55,7,55,10],[39,2,39,10],[41,2,41,10],[42,2,42,10],[43,1,44,1],[48,1,48,10],[12,3,12,10],[24,1,25,1],[21,4,21,10],[18,4,18,10],[43,2,44,10],[40,2,40,10],[26,1,27,1],[26,2,27,2],[26,3,27,5],[26,6,26,7],[26,8,26,10],[27,6,27,7],[27,8,27,10],[28,2,28,8],[38,2,38,10],[37,2,37,10],[24,2,25,10],[19,8,19,10],[20,2,20,3],[20,4,20,10],[21,2,21,3],[22,2,22,3],[23,2,23,10],[22,6,22,7],[22,4,22,5],[22,8,22,10],[1,13,5,14],[13,8,13,10],[11,3,11,10],[17,2,17,5],[17,7,17,10],[12,1,12,2],[13,1,13,2],[13,6,13,7],[13,3,13,5],[7,1,7,2],[7,3,7,5],[7,6,7,7],[7,8,7,10],[8,1,8,2],[8,3,8,5],[8,6,8,7],[19,1,22,1],[19,2,19,3],[19,4,19,5],[19,6,19,7],[1,1,1,10],[8,8,8,10],[9,1,9,2],[9,3,9,5],[9,6,9,7],[9,8,9,10],[10,1,10,2],[10,3,10,5],[10,6,10,7],[10,8,10,10],[11,1,11,2],[18,2,18,3]]}
[]
[null,"研究補助業務（アルバイト）に関する労働条件通知書兼同意書",null,null,null,null,null,null,null,null,null,null,null,1]
[]
[null,"太枠内の勤務条件等を裏面まで確認し、裏面の署名欄に署名をして各研究費担当事務室へ提出してください。"]
[null,"※ 本学の専任教職員（助教、助手含む）及び法人PDはアルバイトをすることができません。"]
[]
[null,"【1】アルバイト従事者"]
[null,"氏名",null,{"$f":"_xlfn.XLOOKUP($N$2,一覧!$B:$B,一覧!G:G,0)","v":0},{"$f":"_xlfn.XLOOKUP($N$2,一覧!$B:$B,一覧!#REF!,0)","v":{"$error":"#REF!"}},{"$f":"_xlfn.XLOOKUP($N$2,一覧!$B:$B,一覧!#REF!,0)","v":{"$error":"#REF!"}},"氏名フリガナ",null,{"$f":"_xlfn.XLOOKUP($N$2,一覧!$B:$B,一覧!H:H,0)","v":0},{"$f":"_xlfn.XLOOKUP($N$2,一覧!$B:$B,一覧!#REF!,0)","v":{"$error":"#REF!"}},{"$f":"_xlfn.XLOOKUP($N$2,一覧!$B:$B,一覧!M:M,0)","v":0}]
[null,"所属（学生）",null,{"$f":"_xlfn.XLOOKUP($N$2,一覧!$B:$B,一覧!I:I,0)","v":0},{"$f":"_xlfn.XLOOKUP($N$2,一覧!$B:$B,一覧!#REF!,0)","v":{"$error":"#REF!"}},{"$f":"_xlfn.XLOOKUP($N$2,一覧!$B:$B,一覧!#REF!,0)","v":{"$error":"#REF!"}},"所属（学生以外）",null,{"$f":"_xlfn.XLOOKUP($N$2,一覧!$B:$B,一覧!J:J,0)","v":0},{"$f":"_xlfn.XLOOKUP($N$2,一覧!$B:$B,一覧!#REF!,0)","v":{"$error":"#REF!"}},{"$f":"_xlfn.XLOOKUP($N$2,一覧!$B:$B,一覧!M:M,0)","v":0}]
[null,"チェックID",null,{"$f":"_xlfn.XLOOKUP($N$2,一覧!$B:$B,一覧!E:E,0)","v":0},{"$f":"_xlfn.XLOOKUP($N$2,一覧!$B:$B,一覧!#REF!,0)","v":{"$error":"#REF!"}},{"$f":"_xlfn.XLOOKUP($N$2,一覧!$B:$B,一覧!#REF!,0)","v":{"$error":"#REF!"}},"チェックID配布元",null,{"$f":"_xlfn.XLOOKUP($N$2,一覧!$B:$B,一覧!J:J,0)","v":0},{"$f":"_xlfn.XLOOKUP($N$2,一覧!$B:$B,一覧!#REF!,0)","v":{"$error":"#REF!"}},{"$f":"_xlfn.XLOOKUP($N$2,一覧!$B:$B,一覧!M:M,0)","v":0}]
[null,"電話番号",null,{"$f":"_xlfn.XLOOKUP($N$2,一覧!$B:$B,一覧!N:N,0)","v":0},{"$f":"_xlfn.XLOOKUP($N$2,一覧!$B:$B,一覧!#REF!,0)","v":{"$error":"#REF!"}},{"$f":"_xlfn.XLOOKUP($N$2,一覧!$B:$B,一覧!#REF!,0)","v":{"$error":"#REF!"}},"e-mail",null,{"$f":"_xlfn.XLOOKUP($N$2,一覧!$B:$B,一覧!O:O,0)","v":0},{"$f":"_xlfn.XLOOKUP($N$2,一覧!$B:$B,一覧!#REF!,0)","v":{"$error":"#REF!"}},{"$f":"_xlfn.XLOOKUP($N$2,一覧!$B:$B,一覧!M:M,0)","v":0}]
[null,"本アルバイト以外での\n本学での職務\n(TA等)(予定含む)",null,{"$f":"_xlfn.XLOOKUP($N$2,一覧!$B:$B,一覧!K:K,0)","v":0}]
[null,"勤務曜日・時間",null,{"$f":"_xlfn.XLOOKUP($N$2,一覧!$B:$B,一覧!L:L,0)","v":0}]
[null,"昨年度における本学での\n職務実績の有無",null,{"$f":"_xlfn.XLOOKUP($N$2,一覧!$B:$B,一覧!C:C,0)","v":0},{"$f":"_xlfn.XLOOKUP($N$2,一覧!$B:$B,一覧!#REF!,0)","v":{"$error":"#REF!"}},{"$f":"_xlfn.XLOOKUP($N$2,一覧!$B:$B,一覧!#REF!,0)","v":{"$error":"#REF!"}},"資格外活動許可\n(留学生)",null,{"$f":"_xlfn.XLOOKUP($N$2,一覧!$B:$B,一覧!M:M,0)","v":0}]
[null,"※1　研究費アルバイト、TA、RA、SA、嘱託職員などすべてを含みます。"]
[]
[null,"【2】勤務条件"]
[null,"研究者",{"$f":"_xlfn.XLOOKUP($N$2,一覧!$B:$B,一覧!T:T,0)","v":0},null,null,null,"所属",{"$f":"_xlfn.XLOOKUP($N$2,一覧!$B:$B,一覧!V:V,0)","v":0}]
[null,"研究費","研究費名称",null,{"$f":"_xlfn.XLOOKUP($N$2,一覧!$B:$B,一覧!W:W,0)","v":0}]
[null,"作業期間\n･時間等","作業期間（開始）",null,{"$f":"_xlfn.XLOOKUP($N$2,一覧!$B:$B,一覧!Y:Y,0)","v":"00:00:00"},null,"作業期間（終了）",null,{"$f":"_xlfn.XLOOKUP($N$2,一覧!$B:$B,一覧!Z:Z,0)","v":"00:00:00"}]
[null,null,"定期勤務/不定期勤務",null,{"$f":"_xlfn.XLOOKUP($N$2,一覧!$B:$B,一覧!AA:AA,0)","v":0}]
[null,null,"定期勤務(曜日・時間)",null,{"$f":"_xlfn.XLOOKUP($N$2,一覧!$B:$B,一覧!AB:AB,0)","v":""}]
[null,null,"勤務時間/日",null,{"$f":"_xlfn.XLOOKUP($N$2,一覧!$B:$B,一覧!AC:AC,0)","v":0},null,"勤務時間/週",null,{"$f":"_xlfn.XLOOKUP($N$2,一覧!$B:$B,一覧!AD:AD,0)","v":0}]
[null,"従事場所",{"$f":"_xlfn.XLOOKUP($N$2,一覧!$B:$B,一覧!AE:AE,0)","v":0}]
[null,"作業内容",{"$f":"_xlfn.XLOOKUP($N$2,一覧!$B:$B,一覧!AG:AG,0)","v":0}]
[]
[null,"給与","時給額\n（円）",{"$f":"_xlfn.XLOOKUP($N$2,一覧!$B:$B,一覧!AH:AH,0)","v":0},null,null,"通勤交通費の支給",null,{"$f":"_xlfn.XLOOKUP($N$2,一覧!$B:$B,一覧!AI:AI,0)","v":0}]
[null,null,null,null,null,null,"定期区間",null,{"$f":"_xlfn.XLOOKUP($N$2,一覧!$B:$B,一覧!AJ:AJ,0)","v":0}]
[null,"備考","（従事者が非居住者の場合）安全保障輸出管理にかかるチェック：",null,null,null,null,null,null,{"$f":"_xlfn.XLOOKUP($N$2,一覧!$B:$B,一覧!AK:AK,0)","v":0}]
[]
[null,"※2　雇い入れ時より変更がある場合は研究者より伝える。"]
[null,"※3　月末締・翌月末払い（当月の業務終了後、速やかに「勤務実績報告書兼請求書」を各キャンパスの研究担当事務室の窓口に提出してください。）"]
[]
[]
[]
[]
[null,"【2】勤務条件（続き）"]
[null,"労働時間数\n休憩","・1日の実働勤務時間が6時間を超える場合は、必ず１時間休憩をとることを厳守してください。\n・休憩時間を除き１週間について、各週の日曜日を始点として40時間を超えての労働はできません。\n　なお、就学ビザ等で労働時間が40時間未満と定められている場合、それに従ってください。\n・原則として１日の実働勤務時間は8時間を超えないでください。"]
[null,"所定外\n労働時間","なし\n※原則として22時以降の勤務は発生しません。やむを得ず法定労働時間内の勤務が22 時以降になった場合は、\n   深夜労働の割増賃金対象となり通常時給の1.25 倍の時給で算定します。\n※大学の定める休日（日曜・祝祭日、本学創立記念日、本学創立記念祝日、年末年始休日）の勤務であっても、時給の　\n　割増はありません。"]
[null,"休日","・毎週少なくとも１日は休日としてください。"]
[null,"休暇","・年次有給休暇：法定どおり付与する。\n・代替休暇：なし"]
[null,"退職","・定年制：満65歳とし、定年に達した日の属する年度末日をもって退職とする。\n・継続雇用制度：なし\n・自己都合退職の手続き（退職する30日以上前に届け出ること。）\n・解雇の事由（解雇については、研究プロジェクト終了等による。）"]
[null,"更新","・更新回数は最大４回（通算５年以内）"]
[null,"その他","・昇給、賞与、退職金：支給無し\n・社会保険の加入状況：加入無し\n・雇用保険の適用：加入無し"]
[]
[]
[]
[]
[null,"    ＜従事者本人署名＞"]
[null,"上記労働条件に同意しました。"]
[null,"従事者氏名",null,null,null,null,null,"記入日　　　　　年　　　月　　　日"]
[]
[]
[null,null,null,null,null,null,null,null,null,null,"記入日　　　　　年　　　月　　　日"]
[]
[null,null,null,null,null,null,null,"事業場名称   学校法人明治大学研究推進部　"]
[null,null,null,null,null,null,null,"所在地　　東京都千代田区神田駿河台1-1"]
[null,null,null,null,null,null,null,"　  事業者氏名    研究・知財戦略機構長　上野正雄"]

{"sheet":"リスト","index":2,"n_rows":11,"n_cols":13,"rows_kept":11,"cut":false,"hidden":true,"merged":[]}
[]
[]
[]
[]
[]
[]
[]
[]
[null,null,"有り",null,"直接経費",null,"☑",null,"専門知識を要する業務",null,"有",null,"定期勤務"]
[null,null,"無し",null,"研究支援経費",null,null,null,"一般的補助業務",null,null,null,"不定期勤務"]
[null,null,null,null,"直接経費・研究支援経費"]